[Event "4NCL 2022-2023"]
[Site "Daventry"]
[Date "2023.03.18"]
[Round "7.4"]
[White "Moreby, James"]
[Black "Harvey, Marcus R"]
[Result "1/2-1/2"]
[ECO "B12"]
[WhiteElo "2353"]
[BlackElo "2471"]
[Annotator "TA"]
[PlyCount "96"]
[EventDate "2022.10.20"]
[EventType "team-tourn"]
[EventCountry "ENG"]
[SourceTitle "playchess.com"]
[Source "ChessBase"]
[SourceQuality "1"]
[TimeControl "40/6000+30:2400+30"]

{[%evp 9,96,21,29,23,41,27,22,0,0,0,0,0,24,-6,6,-8,-13,-9,-15,-15,-10,-15,-13,-25,-18,-20,-13,-21,-23,-29,-11,-25,-14,-21,-13,-12,-12,-12,-12,-16,-12,-12,-11,-20,-8,-9,-8,-16,-20,-31,0,0,0,0,0,0,71,71,70,62,58,57,62,62,62,62,62,47,47,48,48,48,48,48,77,77,77,67,77,70,77,20,49,23,23,0,24,24,32]} 1. e4 {[%emt 0:00:03]} c6 {[%emt 0:13:10]} 2. d4 {[%emt 0:00:06]} d5 {[%emt 0:00:15]} 3. e5 {[%emt 0:00:02]} Bf5 {[%emt 0:00:32]} 4. Nf3 {[%emt 0:00:11]} e6 {[%emt 0:01:09]} 5. Be2 {[%emt 0:00:07]} a6 {[%emt 0:04:55]} 6. O-O {[%emt 0:08:48] B12: Caro-Kann: Advance Variation.} c5 {[%emt 0:01:47]} 7. c3 {[%emt 0:06:59]} Nc6 {[%emt 0:02:12]} 8. Nbd2 {[%emt 0:12:43] The position is equal.} cxd4 {[%emt 0:03:29]} 9. Nxd4 {[%emt 0:08:40]} Nxd4 {[%emt 0:03:06]} 10. cxd4 {[%emt 0:01:03][%cal Ob2b4]} Ne7 {[%emt 0:00:47] [#]} (10... Rc8 $5 {[%cal Rf5c2]}) 11. Nf3 $146 {[%emt 0:05:51]} ({Predecessor:} 11. Nb3 Nc6 12. Bg4 Bg6 13. Be3 Nb4 14. Qd2 Rc8 15. Nc5 Bxc5 16. dxc5 Nc2 17. Rac1 {1-0 Hernandez Molina,D (2221)-Cardozo,C (2406) EM/MLP/01 corr 2003}) 11... h6 {[%emt 0:06:28]} 12. h3 {[%emt 0:18:48]} Nc6 {[%emt 0:01:20]} 13. Bd3 {[%emt 0:01:41]} Bxd3 {[%emt 0:01:42]} 14. Qxd3 {[%emt 0:00:21]} Qb6 {[%emt 0:01:02]} 15. Bd2 {[%emt 0:04:36]} Be7 {[%emt 0:01:59]} 16. b4 {[%emt 0:05:57]} O-O {[%emt 0:02:42]} (16... Nxb4 17. Qb3 $16) (16... Bxb4 $2 17. Rfb1 $18) 17. Rfb1 {[%emt 0:04:04]} Rfc8 {[%emt 0:01:47]} (17... Bxb4 $2 18. a3 $18) (17... Nxb4 $2 18. Bxb4 Bxb4 19. a3 $18) 18. a4 {[%emt 0:04:37]} Qd8 {[%emt 0:03:06]} (18... Nxb4 $2 19. Bxb4 Bxb4 20. a5 $18) (18... Bxb4 $2 19. a5 Nxa5 20. Bxb4 $18 (20. Rxb4 Qc7 $18)) 19. Rb3 {[%emt 0:02:12]} Bf8 {[%emt 0:04:15]} 20. Rab1 {[%emt 0:03:04]} Ne7 {[%emt 0:06:46]} 21. b5 {[%emt 0:01:44]} axb5 {[%emt 0:13:38]} 22. a5 {[%emt 0:00:36]} b6 {[%emt 0:04:28]} 23. axb6 {[%emt 0:00:16]} ({Don't play} 23. Rxb5 bxa5 24. Bc1 Nc6 $17) 23... Qxb6 {[%emt 0:00:05]} 24. Qxb5 {[%emt 0:01:47]} Qxb5 {[%emt 0:02:22]} 25. Rxb5 {[%emt 0:00:03]} Rc4 {[%emt 0:01:03]} 26. R5b4 {[%emt 0:05:29]} Rxb4 {[%emt 0:01:31]} 27. Rxb4 {[%emt 0:00:59]} Nc6 {[%emt 0:02:52]} 28. Rb7 {[%emt 0:01:46]} Ra1+ {[%emt 0:02:06]} 29. Kh2 {[%emt 0:00:18]} Rd1 {[%emt 0:01:41][%cal Oc6d4] [#] aiming for ...Nxd4!} 30. Rb2 {[%emt 0:01:22]} g5 {[%emt 0:03:47]} 31. Rc2 {[%emt 0:01:14]} Bb4 {[%emt 0:02:30]} 32. Rc1 {[%emt 0:04:51]} Rxd2 {[%emt 0:09:35]} (32... Rxc1 $11 {remains equal.} 33. Bxc1 Bc3) 33. Nxd2 $16 {[%emt 0:00:18]} Nxd4 $11 {[%emt 0:00:44][%mdl 4096] Endgame [#] KRN-KBN} 34. Ne4 {[%emt 0:02:23][%mdl 64] Deflection} Kg7 {[%emt 0:06:10]} ({Weaker is} 34... dxe4 35. Rc4 $16) 35. Nd6 {[%emt 0:01:33]} Bd2 {[%emt 0:01:50]} 36. Rc7 {[%emt 0:00:36]} Bf4+ {[%emt 0:00:06]} 37. g3 {[%emt 0:00:18] White is more active.} Bxe5 {[%emt 0:00:02]} 38. Rxf7+ {[%emt 0:00:08]} Kg6 {[%emt 0:00:03]} 39. Rd7 {[%emt 0:00:10]} h5 {[%emt 0:00:27]} 40. Nf7 {[%emt 0:04:07]} Bf6 {[%emt 0:01:03]} 41. Kg2 {[%emt 0:00:00]} Nc6 {[%emt 0:00:00]} 42. Nd6 {[%emt 0:00:00]} Nd4 {[%emt 0:00:00]} 43. Nb7 {[%emt 0:01:17]} h4 {[%emt 0:00:00]} 44. Nc5 {[%emt 0:10:11]} hxg3 {[%emt 0:03:47]} 45. Kxg3 {[%emt 0:03:46]} (45. fxg3 $16 Bg7 46. Rb7) 45... Kh5 {[%emt 0:02:36]} 46. Rh7+ {[%emt 0:00:59]} Kg6 {[%emt 0:00:05]} 47. Rd7 {[%emt 0:00:16]} Kf5 {[%emt 0:02:24]} 48. Rf7 {[%emt 0:01:00] Threatens to win with Nd7.} Kg6 {[%emt 0:02:22] Weighted Error Value: White=0.08 (flawless) /Black=0.09 (flawless)} 1/2-1/2

[Event "4NCL 2022-2023"]
[Site "Daventry"]
[Date "2023.03.18"]
[Round "7.5"]
[White "Fitzsimons, David"]
[Black "Clarke, Brandon G I"]
[Result "1/2-1/2"]
[ECO "B22"]
[WhiteElo "2342"]
[BlackElo "2475"]
[Annotator "TA"]
[PlyCount "52"]
[EventDate "2022.10.20"]
[EventType "team-tourn"]
[EventCountry "ENG"]
[SourceTitle "playchess.com"]
[Source "ChessBase"]
[SourceQuality "1"]
[TimeControl "40/6000+30:2400+30"]

{[%evp 9,52,0,0,0,0,0,0,6,10,7,10,8,13,-10,26,20,56,44,36,44,47,37,41,37,45,33,35,40,43,37,35,0,0,0,0,0,0,0,0,0,0,0,0,0,0]} 1. e4 {[%emt 0:01:33]} c5 {[%emt 0:00:10]} 2. c3 {[%emt 0:00:14]} Nf6 {[%emt 0:00:34]} 3. e5 {[%emt 0:00:08]} Nd5 {[%emt 0:00:05]} 4. Nf3 {[%emt 0:00:13]} d6 {[%emt 0:02:22]} 5. Bb5+ {[%emt 0:00:23]} Bd7 {[%emt 0:02:14]} 6. Bc4 {[%emt 0:00:11] B22: Sicilian: 2 c3.} e6 {[%emt 0:08:16]} 7. d4 {[%emt 0:00:24]} cxd4 {[%emt 0:01:05]} 8. Bxd5 {[%emt 0:00:28]} ({Reject} 8. Qxd4 Nc6 9. Qe4 dxe5 10. Nxe5 Nf6 $15) 8... exd5 {[%emt 0:00:08]} 9. O-O {[%emt 0:00:15]} Nc6 {[%emt 0:02:43] [#]} 10. Bf4 $146 {[%emt 0:00:37]} ({Predecessor:} 10. exd6 Bxd6 11. Nxd4 O-O 12. Nb5 Be5 13. Be3 Qh4 14. f4 Bf6 15. Nd2 Bg4 16. Nf3 {0-1 Oberoi,S (2307)-Raja,H (2465) Los Angeles 1000GM IM 02 2023 (3)}) 10... dxe5 {[%emt 0:18:00]} 11. Nxe5 {[%emt 0:06:40]} Qf6 {[%emt 0:00:46]} (11... Be7 $5 {[%cal Rd4c3]}) 12. Nxc6 {[%emt 0:05:46]} Qxc6 {[%emt 0:04:03]} 13. Qxd4 {[%emt 0:03:09]} f6 {[%emt 0:16:48]} 14. Re1+ {[%emt 0:05:53]} Kf7 {[%emt 0:00:40]} 15. Nd2 {[%emt 0:01:07]} Bc5 {[%emt 0:07:08]} 16. Qd3 {[%emt 0:00:12]} Rae8 {[%emt 0:04:34]} 17. Nb3 {[%emt 0:04:02]} (17. b4 {seems wilder.} Bb6 18. a4 Rxe1+ 19. Rxe1 Re8 20. Rxe8 Bxe8 21. a5) 17... Rxe1+ {[%emt 0:04:46]} 18. Rxe1 {[%emt 0:00:12]} Bb6 {[%emt 0:00:26] Prevents Na5} 19. Be3 {[%emt 0:07:20]} ({Don't play} 19. Qe2 Re8 20. Qh5+ Kg8 21. Rxe8+ Bxe8 $11) 19... Qc4 {[%emt 0:15:27]} 20. Rd1 {[%emt 0:12:54] [#] Qxc4 would be deadly.} Qxd3 {[%emt 0:03:01] The position is equal.} 21. Rxd3 {[%emt 0:00:10]} Re8 {[%emt 0:00:48]} 22. Rxd5 {[%emt 0:13:02]} Bc6 {[%emt 0:07:07]} 23. Rd3 {[%emt 0:00:52]} Bb5 $1 {[%emt 0:00:27] A strong pair of Bishops.} 24. Rd5 {[%emt 0:00:30]} Bc6 {[%emt 0:00:45]} 25. Rd3 {[%emt 0:04:27]} Bb5 $1 {[%emt 0:00:08]} 26. Rd5 {[%emt 0:00:37]} Bc6 {[%emt 0:00:10] Weighted Error Value: White=0.05 (flawless) /Black=0.04 (flawless)} 1/2-1/2

[Event "4NCL 2022-2023"]
[Site "Daventry"]
[Date "2023.03.18"]
[Round "7.6"]
[White "Makkar, Rajat"]
[Black "O`Gorman, Tom"]
[Result "1-0"]
[ECO "D37"]
[WhiteElo "2426"]
[BlackElo "2357"]
[Annotator "TA"]
[PlyCount "49"]
[EventDate "2022.10.20"]
[EventType "team-tourn"]
[EventCountry "ENG"]
[SourceTitle "playchess.com"]
[Source "ChessBase"]
[SourceQuality "1"]
[TimeControl "40/6000+30:2400+30"]

{[%evp 12,49,35,16,23,0,0,0,0,0,0,0,0,0,0,8,10,0,0,0,6,0,0,-14,-25,-91,-83,-81,6,31,19,37,108,123,325,335,524,498,647,641]} 1. d4 {[%emt 0:00:20]} Nf6 {[%emt 0:00:08]} 2. c4 {[%emt 0:00:13]} e6 {[%emt 0:00:06]} 3. Nf3 {[%emt 0:00:44]} d5 {[%emt 0:00:06]} 4. Nc3 {[%emt 0:02:02]} Be7 {[%emt 0:00:14]} 5. Bf4 {[%emt 0:00:30]} O-O {[%emt 0:00:10]} 6. e3 {[%emt 0:00:41]} a6 {[%emt 0:00:06]} 7. c5 {[%emt 0:02:27]} Nh5 {[%emt 0:00:08] D37: Queen's Gambit Declined: 5 Bf4.} 8. Bd3 {[%emt 0:04:47]} Nxf4 {[%emt 0:00:08]} 9. exf4 {[%emt 0:00:02]} b6 {[%emt 0:00:11] The position is equal.} 10. b4 {[%emt 0:06:23]} a5 {[%emt 0:00:21]} 11. a3 {[%emt 0:01:38]} axb4 {[%emt 0:00:44]} 12. axb4 {[%emt 0:03:46]} Rxa1 {[%emt 0:00:07]} 13. Qxa1 {[%emt 0:00:06]} Nc6 {[%emt 0:00:27] [#]} 14. Qa4 $146 {[%emt 0:10:01]} ({Predecessor:} 14. Qb1 Bf6 15. Ne2 bxc5 16. bxc5 h6 17. O-O Bd7 18. Ne5 Nxe5 19. fxe5 Be7 20. f4 {0-1 Gradevska,D (1721)-Stefanova,M (2016) BUL-ch U20 Girls 2009 (4)}) 14... bxc5 {[%emt 0:08:35]} 15. dxc5 {[%emt 0:14:28]} Bf6 $1 $132 {[%emt 0:11:37][%mdl 2048] Black is fighting back} 16. Ne2 {[%emt 0:01:42]} e5 {[%emt 0:11:17]} 17. Qxc6 {[%emt 0:05:12]} e4 {[%emt 0:00:31]} 18. Bxe4 {[%emt 0:04:03]} dxe4 $17 {[%emt 0:00:07]} 19. Qxe4 {[%emt 0:03:30] [#]} Ba6 {[%emt 0:08:32] A strong pair of Bishops.} ({Better is} 19... Re8 $1 $17 {[%cal Re8e4]} 20. Ne5 g5) 20. Ne5 $11 {[%emt 0:12:34][%cal Oh2h4]} Re8 {[%emt 0:08:10]} 21. h4 {[%emt 0:03:26]} Qd7 {[%emt 0:30:50]} (21... Bxe5 $14 22. fxe5 f5) 22. O-O $16 {[%emt 0:07:42]} Bxh4 $2 {[%emt 0:07:55] [#]} (22... Bxe5 $16 {is a better defense.} 23. fxe5 h6) 23. Ra1 $1 $18 {[%emt 0:04:24]} Qc8 {[%emt 0:12:04]} (23... Bc8 $142 24. g3 Bd8 25. Nxd7 Rxe4) 24. Nd4 {[%emt 0:02:54]} Bc4 {[%emt 0:00:54]} 25. Ndf3 {[%emt 0:02:20] Weighted Error Value: White=0.09 (flawless) /Black=0.51} 1-0

[Event "4NCL 2022-2023"]
[Site "Daventry"]
[Date "2023.03.18"]
[Round "7.7"]
[White "Toma, Katarzyna"]
[Black "Dong, Bao Nghia"]
[Result "1-0"]
[ECO "C18"]
[WhiteElo "2231"]
[BlackElo "2361"]
[Annotator "TA"]
[PlyCount "107"]
[EventDate "2022.10.20"]
[EventType "team-tourn"]
[EventCountry "ENG"]
[SourceTitle "playchess.com"]
[Source "ChessBase"]
[SourceQuality "1"]
[TimeControl "40/6000+30:2400+30"]

{[%evp 16,107,0,0,115,128,124,75,81,66,82,75,109,77,54,21,29,50,74,84,185,198,196,31,28,0,0,0,0,-58,56,59,57,60,113,0,0,0,201,193,208,146,144,155,126,11,156,165,251,229,262,227,279,267,820,20,11,21,1443,1403,2527,2442,2067,642,610,625,608,624,613,565,526,509,480,375,753,471,944,937,945,903,1030,1013,960,946,29979,29980,29987,29988,29990,29985,29987,29985,29983,29984]} 1. e4 {[%emt 0:00:03]} e6 {[%emt 0:02:43]} 2. d4 {[%emt 0:00:08]} d5 {[%emt 0:00:09]} 3. Nc3 {[%emt 0:00:11]} Bb4 {[%emt 0:00:05]} 4. e5 {[%emt 0:00:13]} c5 {[%emt 0:00:06]} 5. a3 {[%emt 0:00:14]} Bxc3+ {[%emt 0:00:05]} 6. bxc3 {[%emt 0:00:09]} Ne7 {[%emt 0:00:04]} 7. h4 {[%emt 0:00:12]} Nbc6 {[%emt 0:04:55]} 8. h5 {[%emt 0:02:25]} h6 {[%emt 0:00:05]} 9. Qg4 {[%emt 0:05:50]} Qc7 {[%emt 0:04:54] C18: French: 3 Nc3 Bb4: Main line: 7 h4 and 7 Qg4.} (9... Nf5 $11) 10. Qxg7 $16 {[%emt 0:08:20] White is more active.} Rg8 {[%emt 0:00:10]} 11. Qxh6 {[%emt 0:00:04]} (11. Qf6 $142) 11... cxd4 {[%emt 0:00:06] White is better.} 12. Ne2 {[%emt 0:00:07] [#]} dxc3 $146 {[%emt 0:00:44]} (12... Nxe5 $2 13. cxd4 Nd7 14. Qd2 $18) ({Predecessor:} 12... Qxe5 13. Bb2 dxc3 14. Bxc3 d4 15. Bb2 Rh8 16. Qd2 Rxh5 17. Rxh5 Qxh5 18. Nxd4 e5 19. Nb5 Kf8 {½-½ Hamilton,D (1980)-Volkov,A (2144) W-ch WS/M/199 email 2009}) 13. Qf4 {[%emt 0:05:24]} Bd7 {[%emt 0:07:09]} 14. Nxc3 {[%emt 0:06:36]} (14. h6 {is more complex.} Rh8 15. h7 Ng6 16. Qf6) 14... a6 {[%emt 0:00:27] Inhibits Nb5.} 15. Bd2 {[%emt 0:06:37]} O-O-O {[%emt 0:03:02]} 16. h6 {[%emt 0:07:56]} (16. Qxf7 $2 Rdf8 17. Qh7 Qxe5+ 18. Kd1 Rxf2 $19) 16... Ng6 {[%emt 0:04:45]} 17. Qf6 {[%emt 0:04:33]} ({Reject} 17. Qxf7 $6 Qxe5+ 18. Be2 Nd4 $15) 17... Nh8 {[%emt 0:15:18]} (17... Ncxe5 $16 {is a better defense.} 18. h7 Rge8) 18. Rh5 $18 {[%emt 0:17:35]} Nd4 {[%emt 0:07:04]} 19. Rc1 {[%emt 0:00:53]} (19. Bd3 $1 $18) 19... Nf5 $1 $14 {[%emt 0:00:27]} 20. Rg5 {[%emt 0:15:02]} (20. Rxf5 $5 Rg6 21. Qe7 $14) 20... Rxg5 {[%emt 0:00:34]} 21. Qxg5 {[%emt 0:00:05]} Qxe5+ {[%emt 0:00:10]} 22. Ne2 {[%emt 0:01:14]} (22. Be2 $11) 22... f6 {[%emt 0:02:17]} (22... Ng6 $1 $15) 23. Qh5 {[%emt 0:02:46]} Be8 {[%emt 0:01:04]} 24. Qh3 {[%emt 0:00:30] Black must now prevent g4.} d4 {[%emt 0:00:40]} (24... Ng6 $14) 25. Bf4 {[%emt 0:08:04]} ({White should play} 25. g4 $16 Ne7 26. f4) 25... Qa5+ $11 {[%emt 0:07:15]} 26. Bd2 {[%emt 0:00:29]} Qd5 {[%emt 0:02:39]} (26... Qe5 $11) 27. g4 $18 {[%emt 0:01:33]} Nd6 {[%emt 0:00:13]} 28. Bg2 {[%emt 0:01:27]} Qc4 {[%emt 0:02:04]} 29. Qb3 $36 {[%emt 0:03:42][%cal Og2b7][%mdl 2048] Black is under strong pressure.} Bb5 {[%emt 0:06:56][%csl Gb5][%cal Rc4e2]} 30. Nf4 {[%emt 0:02:21]} (30. Ng3 $16) 30... Rg8 {[%emt 0:03:05]} (30... Nhf7 $11 {keeps the balance.}) 31. a4 {[%emt 0:01:42]} (31. Nxe6 $2 Qe2#) 31... Bc6 {[%emt 0:06:26]} (31... Bxa4 $142 32. Bxb7+ Kd7 33. Qxc4 Nxc4) 32. Bxc6 $1 {[%emt 0:00:36]} ({Weaker is} 32. Bf1 Qxb3 33. cxb3 Rxg4 $14) 32... bxc6 {[%emt 0:00:04] [#]} 33. f3 {[%emt 0:05:31] And now Qb6 would win.} (33. Nxe6 $2 Re8 34. Qxc4 Nxc4 $17) 33... e5 {[%emt 0:05:21]} 34. Nh5 {[%emt 0:01:12]} f5 $2 {[%emt 0:01:36]} (34... Rf8 35. Qb4 (35. Bb4 Qxb3 36. cxb3 Kc7 $18) 35... Qxb4 36. Bxb4 Kd7) 35. g5 $2 {[%emt 0:01:13]} (35. Qb6 $18 Kd7 36. Nf6+ Ke6 37. Nxg8 fxg4 38. Qd8 gxf3 39. Qe7+ Kf5 40. Qg5+ (40. Qxd6 $2 Qe2#) 40... Ke6 41. Qg4+ Nf5 42. Qxf3) 35... f4 $11 {[%emt 0:01:34]} 36. Ng7 {[%emt 0:01:04] Qb6 would be deadly. The board is on fire.} Nhf7 $2 {[%emt 0:01:28][%mdl 8192] [#] Black cannot hold the game after this.} (36... Qxb3 $11 37. cxb3 Kd7) 37. Qb6 $1 $18 {[%emt 0:01:21] Ba5 is the strong threat.} Nxg5 {[%emt 0:01:35]} 38. Ba5 {[%emt 0:01:17][%csl Ga5][%cal Rb6c7]} Nb5 {[%emt 0:07:27] Repels Qc7+} 39. Qxa6+ {[%emt 0:00:14]} (39. axb5 $142 cxb5 40. h7 Nxh7 41. Qxa6+ Kd7 42. Qb7+ Kd6 43. Rb1) 39... Kb8 {[%emt 0:00:55]} 40. Qb6+ {[%emt 0:00:16]} Ka8 {[%emt 0:00:05] ( -> ...Nc3)} 41. axb5 {[%emt 0:40:36]} Qxb5 {[%emt 0:44:08]} 42. Qxb5 {[%emt 0:00:00]} cxb5 {[%emt 0:00:00]} 43. Ke2 {[%emt 0:00:00]} Nf7 {[%emt 0:00:00]} 44. Rh1 {[%emt 0:00:00]} Kb7 $2 {[%emt 0:00:00]} (44... Nxh6 45. Rxh6 Rxg7) 45. Kd3 {[%emt 0:00:00]} Rh8 {[%emt 0:00:00]} (45... Nxh6 $142 46. Rxh6 Rxg7 47. Rb6+ Ka8 48. Rxb5 Rg5) 46. Nf5 {[%emt 0:00:00]} Kc6 {[%emt 0:00:00]} 47. Rg1 {[%emt 0:00:00]} Kd7 {[%emt 0:00:00]} 48. Rg6 {[%emt 0:00:00]} Ra8 {[%emt 0:00:00]} 49. Bb4 {[%emt 0:00:00]} Ra4 {[%emt 0:00:00] [#]} 50. h7 $1 {[%emt 0:00:00] White mates.} e4+ {[%emt 0:00:00]} (50... Nh8 51. Rg8) 51. Kxe4 {[%emt 0:00:00]} d3 {[%emt 0:00:00] [#]} 52. cxd3 $1 {[%emt 0:00:00]} Rxb4+ {[%emt 0:00:00]} (52... Nh8 53. Rg8) 53. d4 {[%emt 0:00:00]} Rb1 {[%emt 0:00:00]} 54. Rg7 {[%emt 0:00:00] Artfully played by Toma.   Weighted Error Value: White=0.47/Black=0.37} 1-0

[Event "4NCL 2022-2023"]
[Site "Daventry"]
[Date "2023.03.18"]
[Round "7.8"]
[White "Foisor, Mihaela-Veronica"]
[Black "Haydon, David L"]
[Result "0-1"]
[ECO "D37"]
[WhiteElo "2195"]
[BlackElo "2268"]
[Annotator "TA"]
[PlyCount "76"]
[EventDate "2022.10.20"]
[EventType "team-tourn"]
[EventCountry "ENG"]
[SourceTitle "playchess.com"]
[Source "ChessBase"]
[SourceQuality "1"]
[TimeControl "40/6000+30:2400+30"]

{[%evp 18,76,-18,-26,0,0,6,0,0,0,0,0,0,0,0,-7,0,0,0,-14,-10,-22,-8,-10,-18,-16,-5,-3,-7,-83,-74,-99,-90,-330,-312,-720,-657,-659,-467,-438,-443,-496,-171,-216,-216,-216,-226,-213,-179,-636,-633,-629,-599,-1266,-633,-633,-634,-605,-589,-793,-783]} 1. c4 {[%emt 0:00:08]} Nf6 {[%emt 0:01:14]} 2. Nc3 {[%emt 0:00:31]} d5 {[%emt 0:00:48]} 3. d4 {[%emt 0:01:05]} e6 {[%emt 0:01:41]} 4. Nf3 {[%emt 0:00:41]} Be7 {[%emt 0:02:24]} 5. e3 {[%emt 0:03:55]} O-O {[%emt 0:04:25]} 6. Be2 {[%emt 0:00:06]} c5 {[%emt 0:01:39]} 7. O-O {[%emt 0:08:23]} dxc4 {[%emt 0:10:07]} 8. Bxc4 {[%emt 0:00:27]} a6 {[%emt 0:00:52]} 9. a4 {[%emt 0:00:49]} Nc6 {[%emt 0:04:30]} 10. b3 {[%emt 0:02:17]} Qc7 {[%emt 0:03:48] D37: Queen's Gambit Declined: 5 Bf4.} 11. dxc5 {[%emt 0:10:20]} Bxc5 {[%emt 0:02:23]} 12. Bb2 {[%emt 0:00:12]} b6 {[%emt 0:02:31] The position is equal.} 13. Rc1 {[%emt 0:04:30]} Bb7 {[%emt 0:15:20] [#]} 14. Bd3 $146 {[%emt 0:00:43][%cal Oa4a5]} ({Predecessor:} 14. Qe2 Rac8 15. e4 Nd4 16. Nxd4 Bxd4 17. Bxa6 Bxa6 18. Qxa6 Qe5 19. Nd5 Rxc1 20. Nxf6+ gxf6 21. Bxc1 Qxe4 {1-0 Harutyunian,T (2542)-Haitin,I (2544) Titled Tuesday intern op 5th Nov blitz 2019 (6)}) 14... Rad8 {[%emt 0:02:06] [#] Hoping for ...Nb4.} 15. Qe2 $1 {[%emt 0:00:46]} Nb4 {[%emt 0:02:19]} 16. Bb1 {[%emt 0:00:42]} Rd7 {[%emt 0:02:31]} 17. Rfd1 {[%emt 0:00:26]} Rfd8 {[%emt 0:01:46]} 18. Rxd7 {[%emt 0:01:51]} Rxd7 {[%emt 0:01:39]} 19. h3 {[%emt 0:00:57]} h6 {[%emt 0:02:46]} 20. Na2 {[%emt 0:08:15]} Nxa2 {[%emt 0:08:50]} 21. Bxa2 {[%emt 0:00:10] Black must now prevent b4.} Qd8 {[%emt 0:02:03]} 22. Bb1 {[%emt 0:02:17]} (22. a5 {feels hotter.} Bxf3 23. Qxf3 Rd2 24. Bxf6 Qxf6 25. Bb1) 22... a5 {[%emt 0:03:12]} 23. e4 {[%emt 0:05:09]} (23. Bc2 $11) 23... Nh7 $17 {[%emt 0:06:48][%cal Bf6h7,Bh7g5,Bg5h3,Bh3f4][%mdl 32]} 24. Bc3 {[%emt 0:04:08]} Ng5 {[%emt 0:01:25][%cal Ob7a6] And now ...Ba6! would win.} 25. Ne5 $2 {[%emt 0:01:50] Now White is beyond hope.} (25. Rf1 $17) 25... Nxh3+ $1 $19 {[%emt 0:03:48][%mdl 64] [#] Double Attack} 26. Kf1 $2 {[%emt 0:03:12]} (26. gxh3 Qg5+ 27. Kh2 Qxc1 28. Nxd7 Bd6+ 29. Be5 Bxe5+ 30. Nxe5 Qxb1 31. f3 Qxb3 32. Qd2) 26... Qg5 {[%emt 0:04:03]} ({Not} 26... Nxf2 27. Nxd7 Qxd7 28. Be1 $16) 27. Re1 {[%emt 0:04:45]} Nf4 {[%emt 0:02:21][%csl Gf4][%cal Rg5g2]} 28. Qf3 {[%emt 0:01:41]} Ba6+ {[%emt 0:01:45]} 29. Kg1 {[%emt 0:02:15]} Re7 {[%emt 0:00:56]} (29... Be2 30. Rxe2 Nxe2+ 31. Qxe2 Qc1+ 32. Kh2 Rd1) 30. Nc4 {[%emt 0:04:07]} Bxc4 {[%emt 0:02:38]} 31. bxc4 {[%emt 0:00:15]} Rd7 {[%emt 0:00:41][%cal Be7d7,Bd7d8,Bd8d3,Bd3d2][%mdl 32] Strongly threatening ...e5.} 32. e5 {[%emt 0:12:17]} Ng6 {[%emt 0:00:18] ...Nh4 is the strong threat.} 33. Bxg6 {[%emt 0:13:39]} (33. Kf1) 33... fxg6 {[%emt 0:01:23] Black is clearly winning.} 34. Qa8+ {[%emt 0:03:17]} Rd8 {[%emt 0:00:31] Active counter play!} 35. Qc6 {[%emt 0:01:47]} Qf5 {[%emt 0:00:37]} 36. Qf3 {[%emt 0:02:10]} Qxf3 {[%emt 0:00:27]} 37. gxf3 {[%emt 0:00:02]} Rd3 {[%emt 0:00:09][%csl LRc3,LRf3]} 38. Bb2 {[%emt 0:00:41]} Rd2 {[%emt 0:00:29] Excellently played by Haydon!   Weighted Error Value: White=0.66/Black=0.58} 0-1

[Event "4NCL 2022-2023"]
[Site "Daventry"]
[Date "2023.03.18"]
[Round "7.9"]
[White "Rowson, Jonathan"]
[Black "Gallana, Marco"]
[Result "1/2-1/2"]
[ECO "A53"]
[WhiteElo "2547"]
[BlackElo "2257"]
[Annotator "TA"]
[PlyCount "45"]
[EventDate "2022.10.20"]
[EventType "team-tourn"]
[EventCountry "ENG"]
[SourceTitle "playchess.com"]
[Source "ChessBase"]
[SourceQuality "1"]
[TimeControl "40/6000+30:2400+30"]

{[%evp 11,45,13,8,12,14,3,15,16,16,18,15,0,20,18,19,22,11,11,21,20,27,18,16,13,16,11,22,0,0,0,0,0,-4,-78,-70,-75]} 1. d4 {[%emt 0:07:52]} Nf6 {[%emt 0:00:16]} 2. c4 {[%emt 0:00:05]} d6 {[%emt 0:00:41]} 3. Nc3 {[%emt 0:00:31]} e5 {[%emt 0:00:13]} 4. dxe5 {[%emt 0:01:29]} dxe5 {[%emt 0:00:11]} 5. Qxd8+ {[%emt 0:00:04]} Kxd8 {[%emt 0:00:12]} 6. Nf3 {[%emt 0:00:02]} Nc6 {[%emt 0:00:45]} 7. Bg5 {[%emt 0:02:41] A53: Old Indian Defence without Nf3.} Be6 {[%emt 0:04:36]} 8. Nd5 {[%emt 0:06:59]} h6 {[%emt 0:06:19]} 9. Bxf6+ {[%emt 0:12:17] The position is equal.} gxf6 {[%emt 0:00:33][%cal Bg7f6,Bf6f5][%mdl 32]} 10. O-O-O {[%emt 0:00:09]} Kc8 $1 {[%emt 0:02:09]} 11. e3 {[%emt 0:00:35]} f5 {[%emt 0:03:36]} 12. g3 {[%emt 0:00:37]} e4 {[%emt 0:03:18] [#]} 13. Nh4 $146 {[%emt 0:03:48]} ({Predecessor:} 13. Nd4 Nxd4 14. exd4 Bxd5 15. cxd5 Rg8 16. f3 exf3 17. Rd3 f4 18. Rxf3 Bd6 19. gxf4 {½-½ Aczel,G (2552)-Sedlak,N (2503) BIH-chT 19th 2021 (7.1)}) 13... Ne5 {[%emt 0:03:50]} 14. Bh3 {[%emt 0:07:32]} Nd3+ {[%emt 0:07:00] [#]} 15. Rxd3 $1 {[%emt 0:00:07]} exd3 {[%emt 0:00:14]} 16. Bxf5 {[%emt 0:00:25]} Rb8 {[%emt 0:02:20]} 17. Bxe6+ {[%emt 0:11:45]} fxe6 {[%emt 0:00:45]} 18. Nf4 {[%emt 0:00:03][%csl LRd3,LRe6]} b5 $1 {[%emt 0:04:01]} 19. cxb5 {[%emt 0:01:16]} (19. Nhg6 $5 {[%cal Rg6h8]} bxc4 20. Nxh8 $11) 19... Rxb5 {[%emt 0:27:47][%cal Od3d2]} 20. Nxd3 {[%emt 0:00:12]} Bg7 {[%emt 0:02:17]} 21. Rd1 {[%emt 0:03:41]} Rd8 {[%emt 0:00:15]} 22. Nf3 {[%emt 0:03:40]} (22. Ng2 $11 {keeps the balance.}) 22... c5 {[%emt 0:15:28][%mdl 1024] ...c4 is the strong threat. Black has strong compensation.} 23. b3 {[%emt 0:12:01] Weighted Error Value: White=0.09 (flawless) /Black=0.03 (flawless)} 1/2-1/2